Cogmind - Beta 9.1 @@@ ROGUE MODE // 2019.10.30 @ 01:47:51 Player: whitenitro0 Result: Destroyed by Striker with Plasma Lance Performance ------------- Evolutions (8) 4000 Regions Visited (31) 6200 Robots Destroyed (56) 280 Value Destroyed (1401) 1401 Prototype IDs (75) 1500 Alien Tech Used (3) 600 Bonus (10368) 10368 TOTAL SCORE: 24349 Bonus ------- Follower Combat Kills 106 Aligned with FarCom 300 Met Data Miner 300 Met Imprinter 300 Met Warlord at Base 500 MAIN.C Attacked Warlord 500 Found Hidden Lab 3000 Used Core Reset Matrix 3000 Met Warlord at Research 2000 Pursued by Intercept 500 Friendly Fire -138 Cogmind --------- Core Integrity 0/1450 Matter 300/300 Energy 100/100 System Corruption 6% Temperature Cool (0) Location -2/Research Parts ------- Power (2) Propulsion (6) Utility (13) Experimental Signal Interpreter Improved Hacking Suite Weapon (2) Inventory (4) Cooled Nuclear Pulse Thruster Cooled Impulse Thruster Advanced Reaction Control System Gamma Rifle Peak State ------------ Power Light Quantum Reactor Light Quantum Reactor Propulsion Cooled Nuclear Pulse Thruster Experimental Cesium-ion Thruster Cooled Impulse Thruster Cooled Impulse Thruster Impulse Thruster Array Utility Large Storage Unit Experimental Matter Compressor Experimental Sensor Array Advanced Signal Interpreter Makeshift Terrain Scanner Improved Terrain Scan Processor Experimental Core Analyzer Experimental Propulsion Shielding Centrium Light Armor Plating Hacking Suite Improved Hacking Suite Deep Network Scanner Ghost Barrier Weapon Enhanced Nova Cannon Guided Remote Datajack Inventory Light Quantum Reactor Experimental Cesium-ion Thruster Experimental Cesium-ion Thruster Advanced Reaction Control System Medium Regenerative Plating EM Disruption Field Transdimensional Reconstructor Nova Cannon Gamma Bomb Array Tiamat Missile Launcher [Rating: 171] Favorites ----------- Power Micro Fission Core Engine Light Ion Engine Power Core Micro Fission Core Reactor Fusion Reactor Propulsion Experimental Cesium-ion Thruster Leg Potential Leg Wheel Compact Wheel Hover Unit Cooled Antigrav System Flight Unit Experimental Cesium-ion Thruster Utility Hacking Suite Device Makeshift Terrain Scanner Storage Medium Storage Unit Processor Improved Terrain Scan Processor Hackware Hacking Suite Protection Improved Utility Shielding Weapon Chainsword Energy Gun Backup Laser I Energy Cannon Nova Cannon Ballistic Gun Assault Rifle Ballistic Cannon Mini Assault Cannon Launcher Mini Grenade Launcher Special Weapon Guided Remote Datajack Slashing Weapon Chainsword Piercing Weapon Vortex Lance Special Melee Weapon Datajack Build | -11 -10 -9 -9 -9 -8 -8 -8 -7 -7 -7 -7 -6 -6 -6 -6 -6 -5 -5 -5 -5 -5 -4 -4 -4 -4 -4 -3 -3 -3 -3 -2 ------- Run | Scr Mat Mat Min Exi Min Mat Sto Fac Low Low Dat Pro Fac Low Low Zio Pro Fac Upp Upp War Pro Fac Upp Upp Zhi Pro Res Arm Lab Res Slots Evolved 16 | . . 2 . . . 2 . 2 . . . . 2 . . . . 2 . . . . 2 . . . . 2 . . 2 Power 1 | . . . . . . . . . . . . . . . . . . . . . . . 1 . . . . . . . . Propulsion 4 | . . 1 . . . . . . . . . . . . . . . . . . . . 1 . . . . 1 . . 1 Utility 11 | . . 1 . . . 2 . 2 . . . . 2 . . . . 2 . . . . . . . . . 1 . . 1 Weapon . | . . . . . . . . . . . . . . . . . . . . . . . . . . . . . . . . Parts Attached 237 | 6 5 9 2 3 . 7 7 5 1 1 . 1 8 5 1 3 1 17 2 . 19 . 16 1 1 13 3 19 19 10 52 Power 27 | 1 1 1 . . . . 1 3 . . . . 1 2 . . . 1 . . . . 3 . . 2 . 4 . 1 6 Engine 3 | 1 1 1 . . . . . . . . . . . . . . . . . . . . . . . . . . . . . Core 17 | . . . . . . . 1 3 . . . . 1 2 . . . 1 . . . . 3 . . 1 . 2 . 1 2 Reactor 7 | . . . . . . . . . . . . . . . . . . . . . . . . . . 1 . 2 . . 4 Propulsion 49 | 2 2 2 . 1 . 1 1 . . . . . 3 . . 1 . 3 . . 5 . 6 . . 3 . 8 2 . 9 Treads . | . . . . . . . . . . . . . . . . . . . . . . . . . . . . . . . . Leg 1 | . . . . 1 . . . . . . . . . . . . . . . . . . . . . . . . . . . Wheel 2 | 2 . . . . . . . . . . . . . . . . . . . . . . . . . . . . . . . Hover 6 | . . . . . . . . . . . . . . . . . . 1 . . 2 . 1 . . . . 1 1 . . Flight 40 | . 2 2 . . . 1 1 . . . . . 3 . . 1 . 2 . . 3 . 5 . . 3 . 7 1 . 9 Utility 101 | 1 1 5 1 2 . 3 3 . 1 1 . 1 3 . 1 2 . 7 2 . 7 . 6 . 1 7 3 6 10 7 20 Device 42 | . . . . 1 . 1 2 . . . . . . . 1 1 . 2 . . 4 . 1 . 1 4 2 1 6 5 10 Storage 10 | 1 1 . 1 . . . 1 . . . . 1 . . . . . . . . . . 3 . . 1 . 1 . . . Processor 20 | . . 3 . . . 2 . . 1 . . . 2 . . 1 . 3 1 . 1 . . . . . . 2 1 . 3 Hackware 8 | . . . . . . . . . . 1 . . 1 . . . . 1 . . 1 . . . . 1 . 1 1 1 . Protection 21 | . . 2 . 1 . . . . . . . . . . . . . 1 1 . 1 . 2 . . 1 1 1 2 1 7 Artifact . | . . . . . . . . . . . . . . . . . . . . . . . . . . . . . . . . Weapon 60 | 2 1 1 1 . . 3 2 2 . . . . 1 3 . . 1 6 . . 7 . 1 1 . 1 . 1 7 2 17 Energy Gun 9 | . . . . . . 1 . . . . . . . . . . . 1 . . 1 . . . . . . . 2 1 3 Energy Cannon 8 | . . . . . . . . . . . . . . . . . . . . . . . . . . . . . 4 . 4 Ballistic Gun 3 | 2 . . . . . . . . . . . . . . . . . . . . . . . . . . . . . . 1 Ballistic Cannon 6 | . . . 1 . . . 2 1 . . . . 1 . . . . . . . . . . . . . . . . . 1 Launcher 13 | . . . . . . 1 . . . . . . . 2 . . 1 2 . . 1 . 1 1 . 1 . . . . 3 Special Weapon 2 | . . . . . . . . . . . . . . . . . . . . . . . . . . . . . . 1 1 Impact Weapon . | . . . . . . . . . . . . . . . . . . . . . . . . . . . . . . . . Slashing Weapon 14 | . . 1 . . . 1 . 1 . . . . . 1 . . . 3 . . 3 . . . . . . 1 1 . 2 Piercing Weapon 4 | . . . . . . . . . . . . . . . . . . . . . 2 . . . . . . . . . 2 Special Melee Weapon 1 | . 1 . . . . . . . . . . . . . . . . . . . . . . . . . . . . . . Unidentified Prototypes 52 | . . 1 . 3 . 1 2 1 . . . 1 1 . . 1 . 2 . . 10 . 1 . . 6 . 1 8 7 6 Parts Lost 41 | . . 3 . . . 1 3 . . . . 2 1 1 . . . . . . . . 2 . . . . . . 3 25 Power 10 | . . 1 . . . . 2 . . . . . . 1 . . . . . . . . . . . . . . . 1 5 Propulsion 7 | . . 2 . . . 1 . . . . . . . . . . . . . . . . . . . . . . . . 4 Utility 17 | . . . . . . . . . . . . 2 . . . . . . . . . . 1 . . . . . . 1 13 Weapon 7 | . . . . . . . 1 . . . . . 1 . . . . . . . . . 1 . . . . . . 1 3 Highest Loss Streak 20 | . . 3 . . . 1 2 . . . . 2 1 1 . . . . . . . . 2 . . . . . . 2 20 Average Slot Usage (%) 85 | . 72 82 66 66 66 79 82 70 75 82 84 83 71 82 86 86 86 85 94 94 95 100 94 94 94 94 100 95 94 93 85 Engine 2 | . 14 11 11 11 11 9 5 . . . . . . . . . . . . . . . . . . . . . . . . Core 4 | . . . . . . . 2 7 7 7 7 7 5 5 6 6 6 4 5 5 5 5 10 10 10 9 10 5 4 6 1 Flight 19 | . 14 31 22 22 22 24 20 23 23 23 23 23 19 20 20 20 20 14 11 11 13 17 21 21 21 20 21 21 22 23 18 Device 5 | . . . . . . 6 8 7 7 7 7 6 . . 4 6 6 5 5 5 5 5 8 10 10 10 11 9 10 13 8 Storage 7 | . 14 11 11 11 11 9 9 7 7 7 7 7 6 6 6 6 6 5 5 5 5 5 5 5 5 5 5 6 9 9 8 Processor 21 | . . 13 11 11 11 21 27 23 22 23 23 23 21 33 33 33 33 35 35 35 32 29 22 21 21 21 21 20 14 9 13 Hackware 9 | . . . . . . . . . . 6 7 6 5 6 6 6 6 10 11 11 13 17 15 15 15 15 15 11 16 19 16 Protection 3 | . . 7 11 11 11 3 . . . . . . . . . . . . 5 5 4 5 4 5 5 5 3 4 4 4 5 Slashing Weapon 4 | . . 4 . . . 5 9 1 7 7 7 7 6 4 6 6 6 5 5 5 7 5 5 5 5 5 5 3 3 1 . Naked Turns . | . . . . . . . . . . . . . . . . . . . . . . . . . . . . . . . . Heaviest Build 71 | 11 11 12 10 10 10 12 16 18 18 18 18 18 18 20 20 20 20 21 24 24 28 28 36 35 35 36 36 45 45 45 71 Greatest Support 68 | 26 26 14 10 10 10 16 18 18 18 18 18 18 20 20 20 20 20 27 27 27 29 29 37 36 36 36 36 45 45 45 68 Greatest Overweight (x) 3 | . . . . 3 . . 3 . . . . . . . . . . . . . 1 . 1 . . 1 . 1 1 . 1 Average Overweight (x) . | . . . . . . . . . . . . . . . . . . . . . . . . . . . . . . . . Largest Inventory Capacity 10 | 6 6 6 6 6 6 6 8 8 8 8 8 8 8 8 8 8 8 8 8 8 8 8 10 10 10 10 10 10 10 10 10 Average Capacity 8 | 5 5 6 6 6 6 6 6 8 8 8 8 8 8 8 8 8 8 8 8 8 8 8 8 10 10 10 10 10 10 10 9 Most Carried 10 | 4 6 6 6 6 6 6 8 8 8 8 8 8 8 8 8 8 8 8 8 8 8 8 9 9 9 10 10 10 10 10 10 Average Carried 7 | 2 5 5 5 6 6 5 6 7 8 8 8 7 7 7 8 8 7 7 7 8 7 8 7 8 9 9 10 9 9 9 9 Final Capacity 10 | 6 6 6 6 6 6 6 8 8 8 8 8 8 8 8 8 8 8 8 8 8 8 8 10 10 10 10 10 10 10 10 4 Final Carried 10 | 4 6 5 6 6 6 6 8 8 8 8 8 8 8 8 8 8 8 8 8 8 8 8 8 9 9 10 10 10 10 10 4 Class Distribution -------------------- 38% | Hacker-Scout 20% | Scout 14% | Mutant 8% | Sprinter 5% | Wizard-Scout 3% | Hacker-Assassin Dominant Class ---------------- Mutant | -10/Materials Scavenger-Mutant | -9/Materials Mutant | -9/Mines Mutant | -9/Exiles Mutant | -8/Mines Scout | -8/Materials Scout | -8/Storage Scout | -7/Factory Scout | -7/Lower Caves Scout | -7/Lower Caves Scout | -7/Data Miner Scout | -6/Proximity Caves Sprinter | -6/Factory Sprinter | -6/Lower Caves Scout | -6/Lower Caves Scout | -6/Zion Scout | -5/Proximity Caves Hacker-Scout | -5/Factory Hacker-Scout | -5/Upper Caves Hacker-Scout | -5/Upper Caves Hacker-Scout | -5/Warlord Hacker-Scout | -4/Proximity Caves Hacker-Scout | -4/Factory Hacker-Scout | -4/Upper Caves Hacker-Scout | -4/Upper Caves Hacker-Scout | -4/Zhirov Hacker-Scout | -3/Proximity Caves Hacker-Scout | -3/Research Hacker-Scout | -3/Armory Hacker-Sprinter | -3/Lab Wizard-Scout | -2/Research Resources | -11 -10 -9 -9 -9 -8 -8 -8 -7 -7 -7 -7 -6 -6 -6 -6 -6 -5 -5 -5 -5 -5 -4 -4 -4 -4 -4 -3 -3 -3 -3 -2 ----------- Run | Scr Mat Mat Min Exi Min Mat Sto Fac Low Low Dat Pro Fac Low Low Zio Pro Fac Upp Upp War Pro Fac Upp Upp Zhi Pro Res Arm Lab Res Matter Collected 3586 | 219 88 93 . 154 . . . 16 53 112 . 33 . 159 . 21 50 185 39 . 190 . 130 75 . . . 521 162 . 1286 Remotely . | . . . . . . . . . . . . . . . . . . . . . . . . . . . . . . . . Salvage Created 1678 | 64 88 . . . . . . 16 31 52 . . . 153 . . 76 327 . . . . 176 57 . . 46 332 . . 260 Parts 92 | 1 7 . . . . . . 3 3 1 . . . 17 . . 8 19 . . . . 9 2 . . 6 14 . . 2 Haulers Intercepted 5 | . . . . . . . . . . . . . . . . . . 1 . . . . 1 . . . . 1 . . 2 Recyclers Shooed . | . . . . . . . . . . . . . . . . . . . . . . . . . . . . . . . . Parts Field Recycled . | . . . . . . . . . . . . . . . . . . . . . . . . . . . . . . . . Retrieved Matter . | . . . . . . . . . . . . . . . . . . . . . . . . . . . . . . . . Parts Self-Destructed 49 | . . . . . . . . . 2 . . 1 . 5 . . 7 . . . 29 . . 2 . . 3 . . . . Prevented 4 | . . . . . . . . . . . . . . . . . . . . . 4 . . . . . . . . . . Kills | -11 -10 -9 -9 -9 -8 -8 -8 -7 -7 -7 -7 -6 -6 -6 -6 -6 -5 -5 -5 -5 -5 -4 -4 -4 -4 -4 -3 -3 -3 -3 -2 ------- Run | Scr Mat Mat Min Exi Min Mat Sto Fac Low Low Dat Pro Fac Low Low Zio Pro Fac Upp Upp War Pro Fac Upp Upp Zhi Pro Res Arm Lab Res Combat Hostiles Destroyed 31 | . 4 . . . . . . . . . . . . 7 . . 5 5 . . . . . 3 . . 5 . . . 2 Guns 4 | . 4 . . . . . . . . . . . . . . . . . . . . . . . . . . . . . . AOE 27 | . . . . . . . . . . . . . . 7 . . 5 5 . . . . . 3 . . 5 . . . 2 Classes Destroyed 10 | 1 2 . . . . . . 1 1 1 . . . . . . . 2 . . . . 1 . . . . . . . 1 Worker 6 | . . . . . . . . . . . . . . . . . . 1 . . . . 2 . . . . 3 . . . Builder 1 | . . . . . . . . . . . . . . . . . . 1 . . . . . . . . . . . . . Hauler 5 | . . . . . . . . . . . . . . . . . . 1 . . . . 1 . . . . 1 . . 2 Recycler 3 | 1 . . . . . . . . . . . . . . . . . 1 . . . . . . . . . 1 . . . Operator 2 | . . . . . . . . 1 . . . . . . . . . . . . . . . . . . . 1 . . . Drone 1 | . . . . . . . . . . . . . . . . . . . . . . . . . . . . . . . 1 Watcher 1 | . . . . . . . . . . . . . . . . . . . . . . . 1 . . . . . . . . Swarmer 28 | . 3 . . . . . . . . . . . . 7 . . 5 5 . . . . . 3 . . 5 . . . . Grunt 1 | . 1 . . . . . . . . . . . . . . . . . . . . . . . . . . . . . . Tracker 2 | . . . . . . . . . . . . . . . . . . . . . . . . . . . . . . . 2 Decomposer 3 | . . . . . . . . . . 3 . . . . . . . . . . . . . . . . . . . . . Samaritan 3 | . . . . . . . . . 1 . . . . 1 . . . . . . . . . 1 . . . . . . . Best Kill Streak 6 | 1 3 . . . . . . 1 . . . . . 4 . . 5 6 . . . . 2 3 . . 5 4 . . 2 Combat Bots Only 5 | . 3 . . . . . . . . . . . . 4 . . 5 5 . . . . . 3 . . 5 . . . 2 Max Kills in Single Turn 5 | 1 1 . . . . . . 1 1 1 . . . 3 . . 5 3 . . . . 2 2 . . 3 1 . . 1 Gunslinging . | . . . . . . . . . . . . . . . . . . . . . . . . . . . . . . . . Exploded 5 | . . . . . . . . . . . . . . 3 . . 5 3 . . . . . 2 . . 3 . . . 1 Melee . | . . . . . . . . . . . . . . . . . . . . . . . . . . . . . . . . Uniques/NPCs Destroyed . | . . . . . . . . . . . . . . . . . . . . . . . . . . . . . . . . Combat | -11 -10 -9 -9 -9 -8 -8 -8 -7 -7 -7 -7 -6 -6 -6 -6 -6 -5 -5 -5 -5 -5 -4 -4 -4 -4 -4 -3 -3 -3 -3 -2 -------- Run | Scr Mat Mat Min Exi Min Mat Sto Fac Low Low Dat Pro Fac Low Low Zio Pro Fac Upp Upp War Pro Fac Upp Upp Zhi Pro Res Arm Lab Res Damage Taken 7654 | . 168 311 . . 16 123 260 . . . . 101 47 145 110 . 30 105 74 36 122 . 423 64 . . 58 148 230 638 4445 Core 2126 | . 37 100 . . . 63 109 . . . . 16 11 18 28 . 13 52 20 . 15 . 14 13 . . . 30 61 152 1374 Absorbed by Shields . | . . . . . . . . . . . . . . . . . . . . . . . . . . . . . . . . Core Remaining (%) 86 | 100 85 . . . 75 . 68 . . . . 97 . . . . 91 . . . . 91 . . . . 97 . . 75 . Volleys Fired 83 | 6 11 . 1 . . . . 3 . . . . 1 3 . . 1 2 . . . . 1 3 . . 7 . 1 11 32 Largest 2 | 2 2 . 1 . . . . 1 . . . . 1 2 . . 1 1 . . . . 1 1 . . 1 . 1 1 1 Hottest 120 | 40 40 . 57 . . . . 48 . . . . 30 60 . . 30 30 . . . . 80 30 . . 30 . 113 80 120 Shots Fired 102 | 12 22 . 1 . . . . 3 . . . . 1 5 . . 1 2 . . . . 1 3 . . 7 . 1 11 32 Gun 51 | 12 22 . . . . . . . . . . . 1 . . . . . . . . . . . . . . . . 11 5 Cannon 18 | . . . 1 . . . . 3 . . . . . . . . . . . . . . . . . . . . 1 . 13 Launcher 24 | . . . . . . . . . . . . . . 5 . . 1 2 . . . . 1 3 . . 7 . . . 5 Special 9 | . . . . . . . . . . . . . . . . . . . . . . . . . . . . . . . 9 Kinetic 40 | 12 22 . 1 . . . . 3 . . . . . . . . . . . . . . . . . . . . . . 2 Thermal 14 | . . . . . . . . . . . . . 1 . . . . . . . . . . . . . . . 1 . 12 Explosive 23 | . . . . . . . . . . . . . . 5 . . 1 2 . . . . . 3 . . 7 . . . 5 Electromagnetic 16 | . . . . . . . . . . . . . . . . . . . . . . . 1 . . . . . . 11 4 Robot Hit Streak 8 | 2 5 . . . . . . 1 . . . . . 1 . . . . . . . . . . . . 3 . . 2 8 Robot Miss Streak 7 | 2 3 . . . . . . 2 . . . . . 1 . . . . . . . . . . . . 1 . . 7 4 Penetration Max . | . . . . . . . . . . . . . . . . . . . . . . . . . . . . . . . . Secondary Targets . | . . . . . . . . . . . . . . . . . . . . . . . . . . . . . . . . Shots Hit Robots 96 | 5 17 2 . . . . 1 1 1 4 . . . 3 . . . 5 . . 1 . 3 2 . . 2 12 2 15 20 Core Hits 90 | 2 6 . . . . . . 2 1 3 . . . 11 . . 8 10 . . 2 . 6 6 . . 10 5 . 5 13 Critical Hits 1 | . . . . . . . . . . 1 . . . . . . . . . . . . . . . . . . . . . Critical Kills . | . . . . . . . . . . . . . . . . . . . . . . . . . . . . . . . . Critical Parts Destroyed 1 | . . . . . . . . . . 1 . . . . . . . . . . . . . . . . . . . . . Melee Attacks 282 | . 3 9 . . . 13 5 . 13 10 . 7 1 3 7 . 16 12 6 11 10 17 21 8 3 1 . 49 32 13 12 Impact . | . . . . . . . . . . . . . . . . . . . . . . . . . . . . . . . . Slashing 268 | . . 7 . . . 13 5 . 13 10 . 7 1 3 7 . 16 12 6 11 9 15 19 8 3 1 . 49 32 13 8 Piercing 4 | . . . . . . . . . . . . . . . . . . . . . . . . . . . . . . . 4 Entropic 5 | . . . . . . . . . . . . . . . . . . . . . 1 2 2 . . . . . . . . Sneak Attacks 23 | . 2 2 . . . . 1 . 1 4 . . . 2 . . . 3 . . . . 1 2 . . . 5 . . . Combat Hostiles . | . . . . . . . . . . . . . . . . . . . . . . . . . . . . . . . . Follow-up Attacks . | . . . . . . . . . . . . . . . . . . . . . . . . . . . . . . . . Damage Inflicted 7637 | 85 180 . . . . . 78 57 123 475 . . . 551 . . 205 684 . . 60 . 389 546 . . 663 1215 160 833 1333 Guns 390 | 85 180 . . . . . . . . . . . . . . . . . . . . . . . . . . . . 9 116 Cannons 449 | . . . . . . . . 57 . . . . . . . . . . . . . . . . . . . . . . 392 Explosions 2372 | . . . . . . . . . . . . . . 301 . . 205 243 . . . . 98 237 . . 663 . . . 625 Melee 4425 | . . . . . . . 77 . 123 475 . . . 250 . . . 441 . . 60 . 291 309 . . . 1215 160 824 200 Ramming 1 | . . . . . . . 1 . . . . . . . . . . . . . . . . . . . . . . . . Kinetic 330 | 85 180 . . . . . . 57 . . . . . . . . . . . . . . . . . . . . . . 8 Thermal 392 | . . . . . . . . . . . . . . . . . . . . . . . . . . . . . . . 392 Explosive 2225 | . . . . . . . . . . . . . . 301 . . 205 243 . . . . . 237 . . 663 . . . 576 Electromagnetic 264 | . . . . . . . . . . . . . . . . . . . . . . . 98 . . . . . . 9 157 Impact . | . . . . . . . . . . . . . . . . . . . . . . . . . . . . . . . . Slashing 4261 | . . . . . . . 77 . 123 475 . . . 250 . . . 441 . . 60 . 291 309 . . . 1215 160 824 36 Piercing 164 | . . . . . . . . . . . . . . . . . . . . . . . . . . . . . . . 164 Highest Corruption 12 | . . . . . . . . . . . . 8 . . . . . 5 5 5 5 . 7 7 7 7 7 2 6 12 6 Average Corruption 5 | . . . . . . . . . . . . 8 . . . . . 5 5 5 5 . 7 7 7 7 7 2 3 7 1 Corruption Purged . | . . . . . . . . . . . . . . . . . . . . . . . . . . . . . . . . Effects 45 | . . . . . . . . . . . . . . . . . . 2 2 5 . . 13 6 5 . 3 . 6 3 . Message Errors 8 | . . . . . . . . . . . . . . . . . . . 1 1 . . 3 1 1 . 1 . . . . Matter Fused 8 | . . . . . . . . . . . . . . . . . . 1 1 . . . . 1 2 . . . 1 2 . Heat Flow Errors 6 | . . . . . . . . . . . . . . . . . . . . 2 . . 2 . 1 . . . 1 . . Energy Discharges 7 | . . . . . . . . . . . . . . . . . . . . 1 . . 3 1 . . . . 2 . . Data Loss (minor) 9 | . . . . . . . . . . . . . . . . . . 1 . 1 . . 3 1 1 . 2 . . . . Data Loss (major) 2 | . . . . . . . . . . . . . . . . . . . . . . . 2 . . . . . . . . Targeting Errors 5 | . . . . . . . . . . . . . . . . . . . . . . . . 2 . . . . 2 1 . Overload Shots . | . . . . . . . . . . . . . . . . . . . . . . . . . . . . . . . . Overflow Damage 722 | . . . . . . . . . . . . . . 44 . . . . . . . . 2 267 . . 38 247 60 16 48 Projectiles . | . . . . . . . . . . . . . . . . . . . . . . . . . . . . . . . . Explosions 88 | . . . . . . . . . . . . . . . . . . . . . . . 2 . . . 38 . . . 48 Melee 634 | . . . . . . . . . . . . . . 44 . . . . . . . . . 267 . . . 247 60 16 . Knockbacks . | . . . . . . . . . . . . . . . . . . . . . . . . . . . . . . . . Impact . | . . . . . . . . . . . . . . . . . . . . . . . . . . . . . . . . Kinetic . | . . . . . . . . . . . . . . . . . . . . . . . . . . . . . . . . Secondary . | . . . . . . . . . . . . . . . . . . . . . . . . . . . . . . . . Self-Inflicted Damage 417 | . . . . . . . . . . . . . . 62 . . . . . . . . . 25 . . 11 . . . 319 Shots 10 | . . . . . . . . . . . . . . 2 . . . . . . . . . 1 . . 1 . . . 6 Rammed 1 | . . . . . . . 1 . . . . . . . . . . . . . . . . . . . . . . . . Targets Rammed 1 | . . . . . . . 1 . . . . . . . . . . . . . . . . . . . . . . . . Kicked . | . . . . . . . . . . . . . . . . . . . . . . . . . . . . . . . . Crushed . | . . . . . . . . . . . . . . . . . . . . . . . . . . . . . . . . Highest Temperature 383 | . 2 5 20 . . . 18 . . . . . 383 . 15 . . . . 141 . . 205 . 124 . . . 96 2 140 Average Temperature 71 | . 2 4 10 . . . 11 . . . . . 208 . 8 . . . . 72 . . 63 . 64 . . . 37 1 66 Received Heat Transfer 606 | . 63 84 . . . 72 135 . . . . . 15 9 36 . . 18 36 9 . . 30 . . . . 45 18 . 36 Siege Activations . | . . . . . . . . . . . . . . . . . . . . . . . . . . . . . . . . Robots Corrupted 1 | . . . . . . . . . . . . . . . . . . . . . . . . . . . . . . . 1 Combat Hostiles . | . . . . . . . . . . . . . . . . . . . . . . . . . . . . . . . . Parts Fried 1 | . . . . . . . . . . . . . . . . . . . . . . . . . . . . . . . 1 Impact Corruptions . | . . . . . . . . . . . . . . . . . . . . . . . . . . . . . . . . Robots Melted . | . . . . . . . . . . . . . . . . . . . . . . . . . . . . . . . . Combat Hostiles . | . . . . . . . . . . . . . . . . . . . . . . . . . . . . . . . . Parts Melted 1 | . . . . . . . . . . . . . . . . . . . . . . . . . . . . . . . 1 Heat Transferred 370 | . . . . . . . . . . . . . . . . . . . . . . . . . . . . . . . 370 Parts Sabotaged . | . . . . . . . . . . . . . . . . . . . . . . . . . . . . . . . . Parts Stolen . | . . . . . . . . . . . . . . . . . . . . . . . . . . . . . . . . Parts Stripped . | . . . . . . . . . . . . . . . . . . . . . . . . . . . . . . . . Power Chain Reactions . | . . . . . . . . . . . . . . . . . . . . . . . . . . . . . . . . Missiles Intercepted . | . . . . . . . . . . . . . . . . . . . . . . . . . . . . . . . . Alert | -11 -10 -9 -9 -9 -8 -8 -8 -7 -7 -7 -7 -6 -6 -6 -6 -6 -5 -5 -5 -5 -5 -4 -4 -4 -4 -4 -3 -3 -3 -3 -2 ------- Run | Scr Mat Mat Min Exi Min Mat Sto Fac Low Low Dat Pro Fac Low Low Zio Pro Fac Upp Upp War Pro Fac Upp Upp Zhi Pro Res Arm Lab Res Peak Influence 436 | 5 150 144 103 . 15 88 193 120 . . . . 436 . . . . 420 . . . . 189 . . . . 162 298 . 230 Average Influence 120 | . 75 92 93 . 14 61 93 98 . . . . 146 . . . . 290 . . . . 83 . . . . 81 195 . 117 Maximum Alert Level 2 | . . . . . . . . . . . . . 2 . . . . 2 . . . . . . . . . . 1 . 1 Low Security (%) 79 | . . . . . . . . . . . . . . . . . . . . . . . . . . . . . . . . Level 1 17 | . . . . . . . . . . . . . . . . . . . . . . . . . . . . . . . . Level 2 3 | . . . . . . . . . . . . . . . . . . . . . . . . . . . . . . . . Level 3 . | . . . . . . . . . . . . . . . . . . . . . . . . . . . . . . . . Level 4 . | . . . . . . . . . . . . . . . . . . . . . . . . . . . . . . . . Level 5 . | . . . . . . . . . . . . . . . . . . . . . . . . . . . . . . . . High Security . | . . . . . . . . . . . . . . . . . . . . . . . . . . . . . . . . Max Security . | . . . . . . . . . . . . . . . . . . . . . . . . . . . . . . . . Squads Dispatched 29 | . 1 3 1 . . 3 3 2 . . . . 2 . . . . 1 . . . . 1 . . . . 1 2 . 9 Investigation 11 | . 1 1 1 . . 1 2 1 . . . . 1 . . . . 1 . . . . 1 . . . . . . . 1 Extermination 2 | . . . . . . . . . . . . . 1 . . . . . . . . . . . . . . . 1 . . Reinforcement 9 | . . 2 . . . 2 1 1 . . . . . . . . . . . . . . . . . . . 1 1 . 1 Assault . | . . . . . . . . . . . . . . . . . . . . . . . . . . . . . . . . Garrison . | . . . . . . . . . . . . . . . . . . . . . . . . . . . . . . . . Intercept 7 | . . . . . . . . . . . . . . . . . . . . . . . . . . . . . . . 7 Construction Impeded . | . . . . . . . . . . . . . . . . . . . . . . . . . . . . . . . . Haulers Reinforced 1 | . . . . . . . . . . . . . . . . . . . . . . . . . . . . . . . 1 Stealth | -11 -10 -9 -9 -9 -8 -8 -8 -7 -7 -7 -7 -6 -6 -6 -6 -6 -5 -5 -5 -5 -5 -4 -4 -4 -4 -4 -3 -3 -3 -3 -2 --------- Run | Scr Mat Mat Min Exi Min Mat Sto Fac Low Low Dat Pro Fac Low Low Zio Pro Fac Upp Upp War Pro Fac Upp Upp Zhi Pro Res Arm Lab Res Distress Signals 19 | . 2 1 . . . 2 . . . . . . . . . . . 3 . . 1 . 2 . . . . . . . 8 Communications Jammed . | . . . . . . . . . . . . . . . . . . . . . . . . . . . . . . . . Distress Signals . | . . . . . . . . . . . . . . . . . . . . . . . . . . . . . . . . Times Spotted 266 | . 15 23 2 . 5 19 12 1 . . . 3 5 11 10 . 5 17 10 6 22 . 17 3 1 . 6 13 23 2 35 Peak Tracking Total 18 | . 7 14 3 . 5 7 13 1 . . . 3 4 6 6 . 6 7 5 5 13 . 11 3 1 . 7 4 9 1 18 Tactical Retreats 41 | . 2 5 2 . . 4 2 . . . . . 1 . 2 . 1 2 3 1 3 . 3 . 1 . . 3 3 . 3 Traps | -11 -10 -9 -9 -9 -8 -8 -8 -7 -7 -7 -7 -6 -6 -6 -6 -6 -5 -5 -5 -5 -5 -4 -4 -4 -4 -4 -3 -3 -3 -3 -2 ------- Run | Scr Mat Mat Min Exi Min Mat Sto Fac Low Low Dat Pro Fac Low Low Zio Pro Fac Upp Upp War Pro Fac Upp Upp Zhi Pro Res Arm Lab Res Traps Triggered 6 | . . 1 . . . . . . . . . . . . . . . . . . . . 2 . . . . 2 1 . . Indirectly . | . . . . . . . . . . . . . . . . . . . . . . . . . . . . . . . . Trap Hack Attempts . | . . . . . . . . . . . . . . . . . . . . . . . . . . . . . . . . Triggered . | . . . . . . . . . . . . . . . . . . . . . . . . . . . . . . . . Disarmed . | . . . . . . . . . . . . . . . . . . . . . . . . . . . . . . . . Reprogrammed . | . . . . . . . . . . . . . . . . . . . . . . . . . . . . . . . . Reused . | . . . . . . . . . . . . . . . . . . . . . . . . . . . . . . . . Traps Extracted . | . . . . . . . . . . . . . . . . . . . . . . . . . . . . . . . . Installed . | . . . . . . . . . . . . . . . . . . . . . . . . . . . . . . . . Triggered 11 | . . . . . . . . . 1 . . . . 1 . . . . . . 8 . . . 1 . . . . . . Machines | -11 -10 -9 -9 -9 -8 -8 -8 -7 -7 -7 -7 -6 -6 -6 -6 -6 -5 -5 -5 -5 -5 -4 -4 -4 -4 -4 -3 -3 -3 -3 -2 ---------- Run | Scr Mat Mat Min Exi Min Mat Sto Fac Low Low Dat Pro Fac Low Low Zio Pro Fac Upp Upp War Pro Fac Upp Upp Zhi Pro Res Arm Lab Res Machines Disabled 10 | . . . . . . . 1 . . . . . . . . . . 1 . 1 . . . . . . . 1 2 1 3 Max in Single Turn 1 | . . . . . . . 1 . . . . . . . . . . 1 . 1 . . . . . . . 1 1 1 1 Garrison Access 2 | . . . . . . . . . . . . . . . . . . . . . . . . . . . . . . . 2 Machines Sabotaged . | . . . . . . . . . . . . . . . . . . . . . . . . . . . . . . . . Garrisons Compromised . | . . . . . . . . . . . . . . . . . . . . . . . . . . . . . . . . Overloaded Fab Kills . | . . . . . . . . . . . . . . . . . . . . . . . . . . . . . . . . Fab Network Shutdowns 1 | . . . . . . . . . . . . . 1 . . . . . . . . . . . . . . . . . . Hacking | -11 -10 -9 -9 -9 -8 -8 -8 -7 -7 -7 -7 -6 -6 -6 -6 -6 -5 -5 -5 -5 -5 -4 -4 -4 -4 -4 -3 -3 -3 -3 -2 --------- Run | Scr Mat Mat Min Exi Min Mat Sto Fac Low Low Dat Pro Fac Low Low Zio Pro Fac Upp Upp War Pro Fac Upp Upp Zhi Pro Res Arm Lab Res Machines Accessed 70 | . 6 2 2 . . 4 6 1 . . 4 . 6 1 1 1 . 6 . . 3 . 7 2 . 4 . 6 3 2 3 Terminals 35 | . 6 2 1 . . 4 5 1 . . . . 3 . . . . 4 . . . . 3 . . . . 4 1 . 1 Fabricators 6 | . . . . . . . . . . . . . 1 . . . . 1 . . . . 2 . . . . . 2 . . Repair Stations 6 | . . . . . . . . . . . . . 1 . . . . 1 . . . . 2 . . . . 2 . . . Recycling Units 1 | . . . . . . . 1 . . . . . . . . . . . . . . . . . . . . . . . . Scanalyzers . | . . . . . . . . . . . . . . . . . . . . . . . . . . . . . . . . Garrison Access 3 | . . . . . . . . . . . . . 1 . . . . . . . . . . . . . . . . . 2 Total Hacks 232 | . 16 6 3 . . 11 16 4 . . 24 . 18 1 1 4 . 21 . . 3 . 24 8 . 17 . 20 8 20 7 Successful 159 | . 6 5 3 . . 6 6 1 . . 24 . 11 1 1 4 . 11 . . 3 . 9 8 . 17 . 15 5 20 3 Failed 73 | . 10 1 . . . 5 10 3 . . . . 7 . . . . 10 . . . . 15 . . . . 5 3 . 4 Catastrophic 12 | . 2 1 . . . 1 1 . . . . . . . . . . 2 . . . . 4 . . . . 1 . . . Database Lockouts . | . . . . . . . . . . . . . . . . . . . . . . . . . . . . . . . . Manual 66 | . 9 4 1 1 . 9 11 . . . . . 4 . . 1 . 9 . . 1 . 12 . . . . 1 1 2 . Terminals 110 | . 16 6 2 . . 11 15 4 . . . . 7 . . . . 17 . . . . 16 . . . . 11 2 . 3 Fabricators 16 | . . . . . . . . . . . . . 4 . . . . 2 . . . . 4 . . . . . 6 . . Repair Stations 20 | . . . . . . . . . . . . . 5 . . . . 2 . . . . 4 . . . . 9 . . . Recycling Units 1 | . . . . . . . 1 . . . . . . . . . . . . . . . . . . . . . . . . Scanalyzers . | . . . . . . . . . . . . . . . . . . . . . . . . . . . . . . . . Garrison Access 6 | . . . . . . . . . . . . . 2 . . . . . . . . . . . . . . . . . 4 Terminal Hacks 115 | . 3 3 2 . . 4 4 1 . . 24 . 2 1 1 4 . 4 . . 3 . 3 8 . 17 . 8 1 20 2 Record 45 | . . . . . . . . . . . 11 . . . . . . . . . 1 . . 7 . 5 . 1 . 20 . Part Schematic 15 | . . . . . . . . . . . 7 . . . . 4 . . . . . . . . . 4 . . . . . Robot Schematic 3 | . . . . . . . . . . . 3 . . . . . . . . . . . . . . . . . . . . Robot Analysis 5 | . . . . . . . . . . . . . 1 . . . . . . . . . . . . 4 . . . . . Prototype ID Bank 7 | . . . . . . . . . . . 3 . . . . . . . . . . . . . . 4 . . . . . Open Door 7 | . . . 1 . . . 1 . . . . . . 1 1 . . . . . 2 . . 1 . . . . . . . Level Access Points 1 | . . 1 . . . . . . . . . . . . . . . . . . . . . . . . . . . . . Branch Access Points 9 | . 1 1 . . . 1 . 1 . . . . 1 . . . . 1 . . . . 1 . . . . 1 . . 1 Emergency Access Points 2 | . . . . . . . 1 . . . . . . . . . . . . . . . . . . . . 1 . . . Terminal Index 2 | . 1 . . . . . . . . . . . . . . . . . . . . . . . . . . . 1 . . Unreport Threat 3 | . . . . . . . . . . . . . . . . . . . . . . . 1 . . . . 2 . . . Locate Traps 1 | . . . . . . . . . . . . . . . . . . . . . . . . . . . . 1 . . . Recall Investigation 2 | . . . . . . 1 1 . . . . . . . . . . . . . . . . . . . . . . . . Recall Reinforcements 1 | . . . . . . 1 . . . . . . . . . . . . . . . . . . . . . . . . . Hauler Manifests 3 | . 1 . . . . . . . . . . . . . . . . 1 . . . . . . . . . 1 . . . Zone Layout 9 | . . 1 1 . . 1 1 . . . . . . . . . . 2 . . . . 1 . . . . 1 . . 1 Fabricator Hacks 10 | . . . . . . . . . . . . . 3 . . . . 1 . . . . 2 . . . . . 4 . . Load Schematic 4 | . . . . . . . . . . . . . 1 . . . . . . . . . 1 . . . . . 2 . . Build 6 | . . . . . . . . . . . . . 2 . . . . 1 . . . . 1 . . . . . 2 . . Repair Station Hacks 15 | . . . . . . . . . . . . . 5 . . . . 2 . . . . 1 . . . . 7 . . . Scan Component 8 | . . . . . . . . . . . . . 2 . . . . 1 . . . . 1 . . . . 4 . . . Repair 6 | . . . . . . . . . . . . . 2 . . . . 1 . . . . . . . . . 3 . . . Refit 1 | . . . . . . . . . . . . . 1 . . . . . . . . . . . . . . . . . . Recycling Unit Hacks . | . . . . . . . . . . . . . . . . . . . . . . . . . . . . . . . . Scanalyzer . | . . . . . . . . . . . . . . . . . . . . . . . . . . . . . . . . Garrison Access Hacks 1 | . . . . . . . . . . . . . . . . . . . . . . . . . . . . . . . 1 Seal Access 1 | . . . . . . . . . . . . . . . . . . . . . . . . . . . . . . . 1 Unauthorized Hacks 60 | . 10 5 2 . . 8 11 . . . . . 4 . . . . 10 . . . . 8 . . . . 1 1 . . Terminals 17 | . 3 2 1 . . 2 1 . . . . . 1 . . . . 4 . . . . 3 . . . . . . . . Track 5 | . 2 1 1 . . 1 . . . . . . . . . . . . . . . . . . . . . . . . . Assimilate 3 | . . . . . . 1 . . . . . . . . . . . 1 . . . . 1 . . . . . . . . Botnet 7 | . . 1 . . . . 1 . . . . . 1 . . . . 3 . . . . 1 . . . . . . . . Disrupt 1 | . . . . . . . . . . . . . . . . . . . . . . . 1 . . . . . . . . Operators 1 | . 1 . . . . . . . . . . . . . . . . . . . . . . . . . . . . . . Fabricators . | . . . . . . . . . . . . . . . . . . . . . . . . . . . . . . . . Repair Stations . | . . . . . . . . . . . . . . . . . . . . . . . . . . . . . . . . Recycling Units 1 | . . . . . . . 1 . . . . . . . . . . . . . . . . . . . . . . . . Tunnel 1 | . . . . . . . 1 . . . . . . . . . . . . . . . . . . . . . . . . Scanalyzers . | . . . . . . . . . . . . . . . . . . . . . . . . . . . . . . . . Garrison Access . | . . . . . . . . . . . . . . . . . . . . . . . . . . . . . . . . Data Cores Recovered . | . . . . . . . . . . . . . . . . . . . . . . . . . . . . . . . . Used . | . . . . . . . . . . . . . . . . . . . . . . . . . . . . . . . . Hacking Detections 47 | . 6 2 1 . . 4 5 1 . . . . 6 . . . . 6 . . . . 5 . . . . 6 3 . 2 Full Trace Events 8 | . 1 . . . . 1 1 1 . . . . 1 . . . . 1 . . . . 1 . . . . . . . 1 Feedback Events . | . . . . . . . . . . . . . . . . . . . . . . . . . . . . . . . . Feedback Blocked . | . . . . . . . . . . . . . . . . . . . . . . . . . . . . . . . . Robot Schematics Acquired 3 | . . . . . . . . . . . 3 . . . . . . . . . . . . . . . . . . . . Robots Built . | . . . . . . . . . . . . . . . . . . . . . . . . . . . . . . . . Matter . | . . . . . . . . . . . . . . . . . . . . . . . . . . . . . . . . Time . | . . . . . . . . . . . . . . . . . . . . . . . . . . . . . . . . Total Robot Build Rating . | . . . . . . . . . . . . . . . . . . . . . . . . . . . . . . . . Part Schematics Acquired 15 | . . . . . . . . . . . 7 . . . . 4 . . . . . . . . . 4 . . . . . Parts Built 6 | . . . . . . . . . . . . . 2 . . . . 1 . . . . 1 . . . . . 2 . . Matter 1806 | . . . . . . . . . . . . . 636 . . . . 256 . . . . 278 . . . . . 636 . . Time 588 | . . . . . . . . . . . . . 338 . . . . 64 . . . . 46 . . . . . 140 . . Total Part Build Rating 41 | . . . . . . . . . . . . . 12 . . . . 8 . . . . 9 . . . . . 12 . . Parts Repaired 6 | . . . . . . . . . . . . . 2 . . . . 1 . . . . . . . . . 3 . . . Time 271 | . . . . . . . . . . . . . 82 . . . . 35 . . . . . . . . . 154 . . . Parts Recycled . | . . . . . . . . . . . . . . . . . . . . . . . . . . . . . . . . Recycled Matter . | . . . . . . . . . . . . . . . . . . . . . . . . . . . . . . . . Retrieved Matter . | . . . . . . . . . . . . . . . . . . . . . . . . . . . . . . . . Retrieved Components . | . . . . . . . . . . . . . . . . . . . . . . . . . . . . . . . . Parts Scanalyzed . | . . . . . . . . . . . . . . . . . . . . . . . . . . . . . . . . Part Schematics Acquired . | . . . . . . . . . . . . . . . . . . . . . . . . . . . . . . . . Parts Damaged . | . . . . . . . . . . . . . . . . . . . . . . . . . . . . . . . . Bothacking | -11 -10 -9 -9 -9 -8 -8 -8 -7 -7 -7 -7 -6 -6 -6 -6 -6 -5 -5 -5 -5 -5 -4 -4 -4 -4 -4 -3 -3 -3 -3 -2 ------------ Run | Scr Mat Mat Min Exi Min Mat Sto Fac Low Low Dat Pro Fac Low Low Zio Pro Fac Upp Upp War Pro Fac Upp Upp Zhi Pro Res Arm Lab Res Used RIF Installer . | . . . . . . . . . . . . . . . . . . . . . . . . . . . . . . . . Robots Hacked 10 | . 2 1 . . . . . . . . . . . . . . . . . . . . . . . . . . . . 7 Non-combat 6 | . 2 1 . . . . . . . . . . . . . . . . . . . . . . . . . . . . 3 Combat 4 | . . . . . . . . . . . . . . . . . . . . . . . . . . . . . . . 4 Robot Hacks Applied 12 | . 3 1 . . . . . . . . . . . . . . . . . . . . . . . . . . . . 8 parse_system 10 | . 2 1 . . . . . . . . . . . . . . . . . . . . . . . . . . . . 7 no_distress 1 | . 1 . . . . . . . . . . . . . . . . . . . . . . . . . . . . . . find_fabricator 1 | . . . . . . . . . . . . . . . . . . . . . . . . . . . . . . . 1 Relay Couplers Released 1 | . . . . . . . . . . . . . . . . . . . . . . . . . . . . . . . 1 Machine Destruction 1 | . . . . . . . . . . . . . . . . . . . . . . . . . . . . . . . 1 Robots Rewired 8 | . . . . . . . . . . . . . . . . . . . . . 4 . . . . . . . 4 . . Allies Hacked . | . . . . . . . . . . . . . . . . . . . . . . . . . . . . . . . . Hacks Repelled . | . . . . . . . . . . . . . . . . . . . . . . . . . . . . . . . . Allies | -11 -10 -9 -9 -9 -8 -8 -8 -7 -7 -7 -7 -6 -6 -6 -6 -6 -5 -5 -5 -5 -5 -4 -4 -4 -4 -4 -3 -3 -3 -3 -2 -------- Run | Scr Mat Mat Min Exi Min Mat Sto Fac Low Low Dat Pro Fac Low Low Zio Pro Fac Upp Upp War Pro Fac Upp Upp Zhi Pro Res Arm Lab Res Total Allies 18 | . . . . . . . . . . . . 1 . . . . . 1 . . 4 . 1 . . . . . 4 . 7 Largest Group 4 | . . . . . . . . . . . . 1 . . . . . 1 . . 4 . 1 . . . . . 4 . . Highest-Rated Group 224 | . . . . . . . . . . . . 94 . . . . . 26 . . 202 . 10 . . . . . 224 . . Highest-Rated Ally 94 | . . . . . . . . . . . . 94 . . . . . 26 . . 60 . 10 . . . . . 56 . . Total Orders 6 | . . . . 2 . . 1 . . . . . . . . . . . . . 2 . . . . . . . 1 . . GOTO 1 | . . . . . . . . . . . . . . . . . . . . . . . . . . . . . 1 . . GUARD 1 | . . . . . . . . . . . . . . . . . . . . . 1 . . . . . . . . . . AID 1 | . . . . . . . . . . . . . . . . . . . . . 1 . . . . . . . . . . EXPLORE 1 | . . . . . . . 1 . . . . . . . . . . . . . . . . . . . . . . . . RETURN 2 | . . . . 2 . . . . . . . . . . . . . . . . . . . . . . . . . . . Ally Attacks 29 | . . . . . . . . . . . . 7 . . . . . . . . 4 . . . . . . . 16 . 2 Total Damage 990 | . . . . . . . . . . . . 235 . . . . . . . . 140 . . . . . . . 384 . 231 Kills 2 | . . . . . . . . . . . . 1 . . . . . . . . . . . . . . . . 1 . . Allies Corrupted 1 | . . . . . . . . . . . . . . . . . . . . . . . . . . . . . 1 . . Allies Melted . | . . . . . . . . . . . . . . . . . . . . . . . . . . . . . . . . Intel | -11 -10 -9 -9 -9 -8 -8 -8 -7 -7 -7 -7 -6 -6 -6 -6 -6 -5 -5 -5 -5 -5 -4 -4 -4 -4 -4 -3 -3 -3 -3 -2 ------- Run | Scr Mat Mat Min Exi Min Mat Sto Fac Low Low Dat Pro Fac Low Low Zio Pro Fac Upp Upp War Pro Fac Upp Upp Zhi Pro Res Arm Lab Res Robot Analysis Total 5 | . . . . . . . . . . . . . 1 . . . . . . . . . . . . 4 . . . . . Derelict Logs Recovered 9 | . . . 1 . . . . . 1 1 . 1 . 1 . 1 1 . . 1 . . . 1 . . . . . . . Drone Launches 5 | . . . . 2 . . 1 . . . . . . . . . . . . . . . . . . . . . . . 2 Drone Recoveries 2 | . . . . 2 . . . . . . . . . . . . . . . . . . . . . . . . . . . Exploration | -11 -10 -9 -9 -9 -8 -8 -8 -7 -7 -7 -7 -6 -6 -6 -6 -6 -5 -5 -5 -5 -5 -4 -4 -4 -4 -4 -3 -3 -3 -3 -2 ------------- Run | Scr Mat Mat Min Exi Min Mat Sto Fac Low Low Dat Pro Fac Low Low Zio Pro Fac Upp Upp War Pro Fac Upp Upp Zhi Pro Res Arm Lab Res Turns Passed 6226 | 71 240 189 180 145 84 261 99 63 147 152 29 173 410 115 86 175 247 325 108 133 440 130 372 113 121 72 75 485 366 162 458 Spaces Moved 12707 | 45 349 383 500 396 211 381 195 157 313 382 95 240 457 321 260 651 391 509 288 273 1133 254 743 346 399 179 243 715 768 224 906 Core 5 | 3 . . . 1 . . 1 . . . . . . . . . . . . . . . . . . . . . . . . Treads . | . . . . . . . . . . . . . . . . . . . . . . . . . . . . . . . . Legs . | . . . . . . . . . . . . . . . . . . . . . . . . . . . . . . . . Wheels 123 | 42 81 . . . . . . . . . . . . . . . . . . . . . . . . . . . . . . Hover 1 | . . . . . . . . . . . . . . . . . . . . . 1 . . . . . . . . . . Flight 12578 | . 268 383 500 395 211 381 194 157 313 382 95 240 457 321 260 651 391 509 288 273 1132 254 743 346 399 179 243 715 768 224 906 Fastest Speed 19 | 50 37 32 34 34 34 32 30 30 30 30 30 30 22 22 22 22 22 22 29 29 25 25 21 21 21 21 21 19 19 19 20 Average Speed 26 | 88 49 34 34 34 34 33 33 30 30 30 30 30 25 22 22 22 22 24 29 29 27 25 21 21 21 21 21 19 19 19 22 Slowest Speed 200 | 100 90 37 34 200 34 34 200 30 30 30 30 30 30 22 22 22 22 40 29 29 107 25 105 21 21 101 21 101 101 19 110 Overloaded Moves . | . . . . . . . . . . . . . . . . . . . . . . . . . . . . . . . . Propulsion Burnouts . | . . . . . . . . . . . . . . . . . . . . . . . . . . . . . . . . Robots Hopped 60 | . 1 6 4 . 4 6 3 2 . . . . 5 2 . . . 6 . . 1 . 7 . . . . 5 . 2 6 Cave-ins Triggered 2 | . . . . . . . . . . . . 1 . . . . . . . . . . 1 . . . . . . . . Teleports 2 | . . . . . . . . . . . . . . . . . . . . . . . . . . . . . . 1 1 Time Travels 1 | . . . . 1 . . . . . . . . . . . . . . . . . . . . . . . . . . . Exploration Rate (%) 54 | 4 54 51 97 91 51 46 54 8 55 61 80 58 16 50 55 85 65 20 53 68 94 57 28 53 66 63 56 28 53 99 32 Regions Visited 31 Branch Regions 22 Pre-discovered Areas 11 | . . . 2 . . . 1 . . . 1 . . . . 2 . . . . . . . 2 . 3 . . . . . Known Exits Taken 25 | . . 1 . . 1 1 1 1 1 1 1 1 1 1 1 1 1 1 1 1 1 1 1 1 1 1 1 1 . . . Unknown Exits Taken 6 | 1 1 . 1 1 . . . . . . . . . . . . . . . . . . . . . . . . 1 1 . Scrap Searched 19 | . . . 1 . . . . . 1 2 . . . 1 1 3 1 . 3 . . 2 . 2 2 . . . . . . Spaces Dug 212 | . . 6 . . . 4 2 . 12 6 . 7 1 1 7 . 20 6 6 10 6 15 15 6 3 1 . 33 25 . 20 Terrain Destroyed 337 | . . 6 1 . . 4 2 . 12 6 . 7 1 22 7 . 20 13 6 10 6 15 15 33 3 1 36 33 25 . 53 Melee 195 | . . 6 . . . 4 2 . 12 6 . 7 1 1 7 . 16 6 6 10 6 15 15 6 3 1 . 33 25 . 7 Projectile 3 | . . . 1 . . . . . . . . . . . . . . . . . . . . . . . . . . . 2 AOE 139 | . . . . . . . . . . . . . . 21 . . 4 7 . . . . . 27 . . 36 . . . 44 Actions | -11 -10 -9 -9 -9 -8 -8 -8 -7 -7 -7 -7 -6 -6 -6 -6 -6 -5 -5 -5 -5 -5 -4 -4 -4 -4 -4 -3 -3 -3 -3 -2 --------- Run | Scr Mat Mat Min Exi Min Mat Sto Fac Low Low Dat Pro Fac Low Low Zio Pro Fac Upp Upp War Pro Fac Upp Upp Zhi Pro Res Arm Lab Res Total 14932 | 60 394 417 504 404 218 480 211 167 345 403 94 330 741 351 278 682 528 685 302 309 1246 297 923 371 430 211 257 972 922 302 1098 Wait 1376 | . 6 12 . 2 12 81 1 . 18 11 . 81 276 19 9 24 117 132 6 26 26 29 106 12 28 . 5 181 68 35 53 Move 12559 | 44 346 370 491 395 203 368 189 152 312 381 94 238 446 317 259 650 390 496 287 272 1130 253 727 345 398 178 242 705 767 219 895 Hop 55 | . 1 6 4 . 3 6 2 2 . . . . 5 1 . . . 6 . . 1 . 7 . . . . 4 . 2 5 Pick Up 73 | 4 10 3 3 1 . 2 3 2 . . . . 1 2 . 1 1 3 1 . 6 . 6 1 . 3 . 5 4 4 7 Fast Attach 159 | 6 4 5 1 2 . 5 3 2 1 1 . 1 7 1 1 3 . 14 . . 16 . 7 . . 12 . 11 17 5 34 Attach 37 | . . 4 . . . 1 2 2 . . . . . 1 . . 1 1 1 . 2 . 4 1 . 2 . 3 . 5 7 Detach 41 | . . 5 . . . . 1 1 1 . . 1 . . 1 1 1 4 . . 2 . 2 1 . 4 . 2 3 2 9 Swap 45 | . 1 . 1 1 . 1 2 1 . . . . 1 3 . . . 2 1 . 1 . 5 . 1 . 3 5 2 2 12 Drop 153 | . 12 3 3 3 . 3 2 2 . . . 1 3 1 1 3 1 13 . . 19 . 12 . . 11 . 7 18 3 32 Fire 83 | 6 11 . 1 . . . . 3 . . . . 1 3 . . 1 2 . . . . 1 3 . . 7 . 1 11 32 Melee 277 | . 3 9 . . . 13 5 . 13 10 . 7 1 3 7 . 16 12 6 11 9 15 19 8 3 1 . 49 32 13 12 Ram 1 | . . . . . . . 1 . . . . . . . . . . . . . . . . . . . . . . . . Kick . | . . . . . . . . . . . . . . . . . . . . . . . . . . . . . . . . Crush . | . . . . . . . . . . . . . . . . . . . . . . . . . . . . . . . . Escape Stasis 28 | . . . . . . . . . . . . 1 . . . . . . . . . . 27 . . . . . . . . Rewire 45 | . . . . . . . . . . . . . . . . . . . . . 34 . . . . . . . 10 1 . Trap . | . . . . . . . . . . . . . . . . . . . . . . . . . . . . . . . . Miscellaneous . | . . . . . . . . . . . . . . . . . . . . . . . . . . . . . . . . Route ------- -11/Scrapyard -10/Materials (discovered 2 exits: *Mat / Min) -9/Materials (discovered 4 exits: *Mat x3 / *Min) -9/Mines (discovered 3 exits: *Mat x2 / *Exi) -9/Exiles -8/Mines -8/Materials (discovered 3 exits: *Fac / *Sto x2) -8/Storage -7/Factory (discovered 2 exits: *Low x2) -7/Lower Caves -7/Lower Caves -7/Data Miner -6/Proximity Caves -6/Factory (discovered 5 exits: Fac / *Low x2 / Ext x2) -6/Lower Caves -6/Lower Caves -6/Zion -5/Proximity Caves -5/Factory (discovered 2 exits: *Upp x2) -5/Upper Caves -5/Upper Caves -5/Warlord -4/Proximity Caves -4/Factory (discovered 2 exits: *Upp x2) -4/Upper Caves -4/Upper Caves (discovered 2 exits: Res / *Zhi) -4/Zhirov -3/Proximity Caves -3/Research (discovered 3 exits: *Arm / *Tes x2) -3/Armory (discovered 2 exits: *Res / *Lab) -3/Lab -2/Research (discovered 2 exits: Qua x2) History --------- Turn | Location | Event 4 | -11/Scrapyard | Discovered new exit (range 15) 72 | -11/Scrapyard | Entered Materials 233 | -10/Materials | Identified exit to Mines 240 | -10/Materials | Discovered new exit (range 13) 310 | -10/Materials | Build established: Mutant 312 | -10/Materials | Entered another Materials area 312 | -9/Materials | Evolved 2 slots: Propulsion x1, Utility x1 449 | -9/Materials | Discovered new exit (range 17) 482 | -9/Materials | Identified exit to Materials 482 | -9/Materials | Identified exit to Mines 501 | -9/Materials | Entered Mines 515 | -9/Mines | Lost 3 parts (1p2n) 525 | -9/Mines | Learned location of Zion (-6) 585 | -9/Mines | Learned location of Storage (-8) 639 | -9/Mines | A weapon hastily lodged in a ceiling crevice suddenly fell to the ground 647 | -9/Mines | Discovered exit to Materials (range 5) 649 | -9/Mines | Discovered exit to Materials (range 15) 666 | -9/Mines | Met a Derelict shopkeep closing up shop 679 | -9/Mines | Deemed a non-threat by the Exiles lab entrance 679 | -9/Mines | Discovered new exit (range 5) 681 | -9/Mines | Entered Exiles 690 | -9/Exiles | Met 8R-AWN 695 | -9/Exiles | Met EX-HEX 705 | -9/Exiles | Met EX-BIN 709 | -9/Exiles | Aligned with FarCom system 709 | -9/Exiles | Given EX-Vault access code 718 | -9/Exiles | Opened EX-Vault 719 | -9/Exiles | Found Prototype Leg 719 | -9/Exiles | Identified Potential Leg 723 | -9/Exiles | Found Prototype Device 723 | -9/Exiles | Identified Chronowheel 723 | -9/Exiles | Activated Chronowheel 723 | -9/Exiles | Spacetime reconverged on an earlier point 724 | -9/Exiles | Found Prototype Device 724 | -9/Exiles | Identified Supersonic Drone Bay 738 | -9/Exiles | Warned to stay clear of 0b10 Research branches 761 | -9/Exiles | Met EX-DEC 768 | -9/Exiles | Visited The Gauntlet 822 | -9/Exiles | Discovered new exit (range 15) 826 | -9/Exiles | Left Exiles lab with Supersonic Drone Bay 826 | -9/Exiles | Entered Mines 908 | -8/Mines | Discovered exit to Materials (range 7) 910 | -8/Mines | Entered Materials 910 | -8/Materials | Evolved 2 slots: Utility x2 981 | -8/Materials | Discovered new exit (range 18) 993 | -8/Materials | Identified exit to Factory 1069 | -8/Materials | Identified exit to Storage 1171 | -8/Materials | Entered Storage 1257 | -8/Storage | Discovered exit to Factory (range 18) 1270 | -8/Storage | Entered Factory 1270 | -7/Factory | Evolved 2 slots: Utility x2 1281 | -7/Factory | Identified exit to Lower Caves 1333 | -7/Factory | Entered Lower Caves 1409 | -7/Lower Caves | Encountered a Warlord checkpoint 1470 | -7/Lower Caves | Learned 12 Factory zone layouts 1477 | -7/Lower Caves | Discovered new exit (range 9) 1479 | -7/Lower Caves | Identified exit to Lower Caves 1480 | -7/Lower Caves | Entered another Lower Caves area 1484 | -7/Lower Caves | Learned Factory terminal intel 1579 | -7/Lower Caves | Build established: Scout 1589 | -7/Lower Caves | Encountered a Warlord checkpoint 1589 | -7/Lower Caves | Discovered new exit (range 14) 1592 | -7/Lower Caves | Identified exit to Data Miner 1632 | -7/Lower Caves | Entered Data Miner 1632 | -7/Data Miner | Discovered new exit (range 6) 1636 | -7/Data Miner | Met Data Miner 1643 | -7/Data Miner | Learned location of Section 7 (-2) 1643 | -7/Data Miner | Acquired the access code to Warlord's prototype stash 1648 | -7/Data Miner | Received God Mode back door access code from Data Miner 1660 | -7/Data Miner | Identified exit to Proximity Caves 1661 | -7/Data Miner | Entered Proximity Caves 1677 | -6/Proximity Caves | Escorted by Enhanced Grunt 1802 | -6/Proximity Caves | Learned Factory terminal intel 1823 | -6/Proximity Caves | Crushed by falling debris 1833 | -6/Proximity Caves | Discovered new exit (range 4) 1834 | -6/Proximity Caves | Identified exit to Factory 1834 | -6/Proximity Caves | Entered Factory 1834 | -6/Factory | Evolved 2 slots: Utility x2 1835 | -6/Factory | Identified exit to Factory 1835 | -6/Factory | Identified exit to Lower Caves 1836 | -6/Factory | Loaded intel: 21 terminal locations 1843 | -6/Factory | Identified exit to Extension 1909 | -6/Factory | Repaired Mic. Nuclear Core 1948 | -6/Factory | Repaired Cesium-ion Thruster 2008 | -6/Factory | Fabricated Exp. Cesium-ion Thruster (x1) 2035 | -6/Factory | Incoming investigation squad redirected 2123 | -6/Factory | Local fabrication network quarantined 2179 | -6/Factory | Fabricated Exp. Cesium-ion Thruster (x1) 2240 | -6/Factory | Build established: Sprinter 2244 | -6/Factory | Entered Lower Caves 2255 | -6/Lower Caves | Spotted B-75 Beast 2261 | -6/Lower Caves | Encountered a Warlord checkpoint 2266 | -6/Lower Caves | Learned Factory terminal intel 2352 | -6/Lower Caves | Discovered new exit (range 14) 2356 | -6/Lower Caves | Identified exit to Lower Caves 2359 | -6/Lower Caves | Entered another Lower Caves area 2434 | -6/Lower Caves | Attracted the attention of an 0b10 checkpoint 2444 | -6/Lower Caves | Discovered new exit (range 5) 2445 | -6/Lower Caves | Identified exit to Zion 2445 | -6/Lower Caves | Entered Zion 2467 | -6/Zion | Found Prototype Device 2467 | -6/Zion | Identified Phasing AFG 2479 | -6/Zion | Discovered new exit (range 19) 2510 | -6/Zion | Received a visual enhancement algorithm 2528 | -6/Zion | Acquired unknown access codes intercepted by a Zionite 2530 | -6/Zion | Learned Factory emergency access door positions 2561 | -6/Zion | Rebuked by Imprinter 2574 | -6/Zion | Learned location of Quarantine (-2) 2620 | -6/Zion | Identified exit to Proximity Caves 2620 | -6/Zion | Entered Proximity Caves 2834 | -5/Proximity Caves | Spotted B-75 Beast 2867 | -5/Proximity Caves | Entered Factory 2867 | -5/Factory | Evolved 2 slots: Utility x2 2869 | -5/Factory | Loaded intel: 20 terminal locations 2929 | -5/Factory | Repaired Enh. Nuclear Core 2972 | -5/Factory | Found Launcher Loader 3007 | -5/Factory | Discovered new exit (range 9) 3007 | -5/Factory | Identified exit to Upper Caves 3159 | -5/Factory | Fabricated Gamma Bomb Array? 3192 | -5/Factory | Entered Upper Caves 3240 | -5/Upper Caves | Encountered a Warlord checkpoint 3253 | -5/Upper Caves | Build established: Hacker-Scout 3279 | -5/Upper Caves | Spotted B-75 Beast 3296 | -5/Upper Caves | Discovered new exit (range 5) 3297 | -5/Upper Caves | Identified exit to Upper Caves 3300 | -5/Upper Caves | Entered another Upper Caves area 3320 | -5/Upper Caves | Learned Factory emergency access door positions 3431 | -5/Upper Caves | Discovered new exit (range 8) 3433 | -5/Upper Caves | Identified exit to Warlord 3433 | -5/Upper Caves | Entered Warlord 3443 | -5/Warlord | System corruption cleaned by Quarantine Array 3570 | -5/Warlord | Visited the Vortex Lab 3573 | -5/Warlord | Found Prototype Piercing Weapon 3573 | -5/Warlord | Identified Vortex Lance 3575 | -5/Warlord | Found Prototype Energy Gun 3575 | -5/Warlord | Identified Vortex Rifle 3578 | -5/Warlord | Found Prototype Launcher 3578 | -5/Warlord | Identified Vortex Catalyst Activator 3587 | -5/Warlord | Found Vortex Lance 3592 | -5/Warlord | Warlord's base attacked by MAIN.C 3685 | -5/Warlord | Met Warlord 3688 | -5/Warlord | Opened Warlord's prototype stash 3690 | -5/Warlord | Found Prototype Device 3690 | -5/Warlord | Identified Thermal Barrier 3695 | -5/Warlord | Found Prototype Device 3695 | -5/Warlord | Identified Exp. Phase Shifter 3703 | -5/Warlord | Found Prototype Processor 3703 | -5/Warlord | Identified Exp. Core Analyzer 3713 | -5/Warlord | Found Prototype Hackware 3716 | -5/Warlord | Identified Ghost Barrier 3754 | -5/Warlord | Opened side exit 3796 | -5/Warlord | Discovered new exit (range 12) 3807 | -5/Warlord | Warlord forces counterattacked 3872 | -5/Warlord | Identified exit to Proximity Caves 3873 | -5/Warlord | Entered Proximity Caves 3875 | -4/Proximity Caves | Spotted B-86 Titan 3998 | -4/Proximity Caves | Discovered new exit (range 19) 4003 | -4/Proximity Caves | Identified exit to Factory 4003 | -4/Proximity Caves | Entered Factory 4003 | -4/Factory | Evolved 2 slots: Power x1, Propulsion x1 4005 | -4/Factory | Loaded intel: 20 terminal locations 4027 | -4/Factory | Crushed by falling debris 4030 | -4/Factory | Discovered new exit (range 22) 4118 | -4/Factory | Found Prototype Device 4118 | -4/Factory | Identified EM Disruption Field 4171 | -4/Factory | Identified exit to Upper Caves 4268 | -4/Factory | Fabricated Adv. Reaction Control System? 4375 | -4/Factory | Entered Upper Caves 4427 | -4/Upper Caves | Learned location of 1 exit from Factory 4427 | -4/Upper Caves | Learned Extension security intel 4427 | -4/Upper Caves | Learned Armory security intel 4427 | -4/Upper Caves | Learned Research terminal intel 4477 | -4/Upper Caves | Discovered new exit (range 12) 4482 | -4/Upper Caves | Identified exit to Upper Caves 4488 | -4/Upper Caves | Entered another Upper Caves area 4489 | -4/Upper Caves | Identified exit to Research 4602 | -4/Upper Caves | Discovered new exit (range 10) 4603 | -4/Upper Caves | Encountered a Warlord checkpoint 4609 | -4/Upper Caves | Identified exit to Zhirov 4609 | -4/Upper Caves | Entered Zhirov 4609 | -4/Zhirov | Discovered new exit (range 3) 4618 | -4/Zhirov | Learned location of Testing (-3) 4618 | -4/Zhirov | Learned location of Command (-1) 4630 | -4/Zhirov | Found Alien Artifact 4630 | -4/Zhirov | Identified Integrated Dissipator 4630 | -4/Zhirov | Installed Integrated Dissipator, increased core heat dissipation (+2%) 4635 | -4/Zhirov | Found Alien Artifact 4680 | -4/Zhirov | Identified exit to Proximity Caves 4681 | -4/Zhirov | Entered Proximity Caves 4727 | -3/Proximity Caves | Discovered exit to Research (range 22) 4756 | -3/Proximity Caves | Entered Research 4756 | -3/Research | Evolved 2 slots: Propulsion x1, Utility x1 4757 | -3/Research | Loaded intel: 16 terminal locations 4804 | -3/Research | Repaired Exp. Cesium-ion Thruster 4861 | -3/Research | Repaired Exp. Cesium-ion Thruster 4961 | -3/Research | Repaired Cld. Impulse Thruster? 4983 | -3/Research | Found Exp. Targeting Computer 4997 | -3/Research | Identified exit to Armory 4997 | -3/Research | Identified exit to Testing 5241 | -3/Research | Entered Armory 5424 | -3/Armory | Fabricated Exp. Cesium-ion Thruster? 5532 | -3/Armory | Found Prototype Processor 5532 | -3/Armory | Identified Spectral Analyzer 5534 | -3/Armory | Found Prototype Device 5534 | -3/Armory | Identified Exp. ECM Suite 5543 | -3/Armory | Found Exp. Sensor Array 5554 | -3/Armory | Fabricated Exp. Cesium-ion Thruster? 5563 | -3/Armory | Discovered new exit (range 18) 5592 | -3/Armory | Discovered new exit (range 2) 5607 | -3/Armory | Entered Lab 5607 | -3/Lab | Discovered new exit (range 9) 5610 | -3/Lab | Unable to decrypt terminal 5610 | -3/Lab | Opened the door to a hidden lab 5611 | -3/Lab | Gained access to the hidden lab's interior 5611 | -3/Lab | Unable to decrypt terminal 5612 | -3/Lab | Detected by scanners 5617 | -3/Lab | Found Alien Artifact 5617 | -3/Lab | Identified Transdimensional Reconstructor (x2) 5617 | -3/Lab | Warped through subspace 5618 | -3/Lab | Confronted by A5 5660 | -3/Lab | Found Alien Artifact 5672 | -3/Lab | Found Prototype Energy Gun 5672 | -3/Lab | Identified Tachyon Dispersion Ray 5687 | -3/Lab | System corruption reached 10% 5721 | -3/Lab | Identified Core Reset Matrix 5721 | -3/Lab | Used Core Reset Matrix 5725 | -3/Lab | Sensed 2 artifacts in vicinity 5739 | -3/Lab | Discovered new exit (range 12) 5746 | -3/Lab | Found Prototype Special Weapon 5749 | -3/Lab | Unable to decrypt terminal 5752 | -3/Lab | Found Prototype Protection 5752 | -3/Lab | Identified Med. Regenerative Plating 5754 | -3/Lab | Identified Gui. Remote Datajack 5758 | -3/Lab | Found Prototype Hackware 5758 | -3/Lab | Identified Deep Network Scanner 5769 | -3/Lab | Entered Research 5769 | -2/Research | Warlord forces began assault on 0b10 5769 | -2/Research | Evolved 2 slots: Propulsion x1, Utility x1 5797 | -2/Research | Spotted B-90 Cyclops 5807 | -2/Research | Identified exit to Quarantine 5824 | -2/Research | Met up with Warlord 5879 | -2/Research | Research machine network offline 5953 | -2/Research | Spotted Tracker 5954 | -2/Research | Spotted Tracker 5958 | -2/Research | Warped through subspace 5974 | -2/Research | Destroyed Tracker 5976 | -2/Research | Destroyed Tracker 6007 | -2/Research | Lost 3 parts (1p1u1w) 6008 | -2/Research | Spotted Combat Programmer 6026 | -2/Research | Found Unknown Piercing Weapon 6026 | -2/Research | Identified Enh. Force Lance 6036 | -2/Research | Found Prototype Processor 6036 | -2/Research | Identified Exp. Signal Interpreter 6058 | -2/Research | Spotted B-90 Cyclops 6100 | -2/Research | Borebot progress halted 6176 | -2/Research | Spotted Striker 6187 | -2/Research | Spotted Striker 6187 | -2/Research | Spotted Executioner 6195 | -2/Research | Spotted Executioner 6195 | -2/Research | Spotted Striker 6195 | -2/Research | Spotted Executioner 6198 | -2/Research | Spotted Tracker 6202 | -2/Research | Spotted Tracker 6203 | -2/Research | Spotted Tracker 6219 | -2/Research | Core integrity fell below 50% 6222 | -2/Research | Emitted hypermatrix ping 6225 | -2/Research | Core integrity fell below 20% 6227 | -2/Research | Assembled emerged from beneath the floor 6227 | -2/Research | Destroyed by Striker with Plasma Lance Last Messages --------------- 06212_ Exp. Cesium-ion Thruster destroyed. 06213_ Impulse Thruster Array destroyed. 06215_ Centrium Light Armor Plating destroyed. 06215_ Knocked back. 06215_ Impulse Thruster Array destroyed. 06217_ EM Disruption Field destroyed. 06219_ Deep Network Scanner destroyed. 06221_ Ghost Barrier destroyed. 06222_ Emitted hypermatrix ping. 06223_ Striker suffers critical hit. 06223_ Striker destroyed. 06224_ Mic. Fission Core destroyed. 06224_ Lrg. Storage Unit destroyed. 06226_ Exp. Matter Compressor destroyed. 06226_ Hacking Suite destroyed. 06226_ Imp. Terrain Scan Processor destroyed. 06227_ Assembled emerge from beneath the floor. 06227_ as-66706 sneak attacks. 06227_ as-13194 sneak attacks. 06227_ Enh. Force Lance destroyed. Map ----- +----------------------------------------------------+ | ##!! ## # ?????????????????????? | | ##!! ## ############# ?????????????????????? | | ##! ## "???????????? ??????????????????????? | | ## ##=!???#?????????? ???????????????????????? | | ## ##%#???????????????????????????????????????? | | #####+##|#???????????????????????????????????????? | | ###?# #??#????#???????????????????????????????? | | # ##????#???##????????????????????????????? | | # #???????????#???????????????????????????? | | + #??#??##???#????#???????????????????????? | | # #????????##????????#???#????????????????? | | # ##??#??#?###????????????????????????????? | | ##### #?#???????##?????????#????#?????????????? | | # #???#?????#???????????#??#??????????????? | | # ####????#????????#??????#????#??????????? | | / #?#?????#???????##??#???????????????????? | | # #????????????#????#??????????#??????????? | | # ##???#??##??#????????#???##?????????????? | | = # #######???????#?????????????#???????????? | | """" " ??? ??????? ??????? ?????????? | | """ " ? ???? ?? ? ? ?????????????? | | " ?????? ????? ?????? ?????????? | | ##################???????#????????????##???????? | | ##?#???##?#???###?#???##??#????????#????????????? | | +#??#???#??????????##?##=##????#?????????????????? | | #???????#????#???##"###a@####????##?##??#???????? | | #?#?###???#??###??# aaKsKa #???????????????????? | | #??#?#?#???#????#?# sppasEa#???????#???????????? | | #??#?##???#???#??## pY""""E #???????????????????? | | #???????????#?#???# """""a #???????????????????? | | ##????#???????#???# """ p##????#??###??#?????? | | ##????#?##????????# """"E ##??????????????????? | | #???###???????????# #????#?????????????? | | ##?##?????????????# ##??#???#?#?????????? | | ?#???????????#??#??######/####???????????????????? | | #????###??############?# #????#????????????????? | | ??????????# # #???????????##????????? | | ?#????#???# = # #??????????#??????????? | | ?##???#???# + #??????#??#???????????? | | ??##??????# # #???????#?????????????? | | ##??##??### # #??????#?#????????????? | | ???#??????############## ##?#??????????????????? | | ?#?##??????????????#### #????#??#????????????? | | ?#??#???????#???#?#???# #?#??????????????????? | | ??????????????? ??????# #????????????#???????? | | ????????#???? ?????# #????????????????????? | | #???????????? ""?????# #???????#????????????? | | ???????#??#?? """????### ###???????#????????????? | | ??????????#? ""???????# #??????????????????????? | | ???????????? ????????# #????????????#?????????? | +----------------------------------------------------+ Best States ------------- Heat Dissipation 69 Energy Generation 45 Energy Capacity 750 Matter Stores 800 Matter Capacity 800 Sight Range 22 Robot Scan Range 30 Terrain Scan Range 18 Terrain Scan Density 285 Cloak Strength 4 Armor Coverage 225 Resistance: EX 50 Resistance: EM 50 Propulsion Shielding 90 Utility Shielding 66 Phase Shifting 20 Evasion (%) 99 Targeting Accuracy 6 Melee Accuracy 8 Core Analysis 15 Salvage Targeting 1 Offensive Hacking 47 Defensive Hacking 34 Item Schematics ----------------- None Robot Schematics ------------------ None Fabricated ------------ Exp. Cesium-ion Thruster | x1 | -6/Factory Exp. Cesium-ion Thruster | x1 | -6/Factory Gamma Bomb Array | x1 | -5/Factory | Preloaded Adv. Reaction Control System | x1 | -4/Factory | Preloaded Exp. Cesium-ion Thruster | x1 | -3/Armory Exp. Cesium-ion Thruster | x1 | -3/Armory Alien Tech Used ----------------- Integrated Dissipator Transdimensional Reconstructor Core Reset Matrix Achievements -------------- None Challenges ------------ None Game ------ Seed DispersionGreatHammer Manual? 0 Play Time 02:51:51 Cumulative 249.1 hours Start 2019.10.29 @ 22:46:30 End 2019.10.30 @ 01:47:51 Sessions 1 Manual Loads 0 Difficulty Rogue Special Mode None Game No. 92 Rogue 92 Adventurer 0 Explorer 0 Win Type - Total 15 Types 8/0/4/1/1/1/0 Lore% 90 Gallery% 92 Achievement% 76 Wizard Run 0 Options --------- ASCII 0 Keyboard 0 Movement Numpad Keybinds 0 Fullscreen 2 Font 18/SmallcapsGlow Map View 76x50 Tactical HUD 1 Map Filters NONE Filters NONE Steam 1 RUN: 3bf8769b-eb85-495b-881c-64ebb9447d36